fUST/lending_fUST_20250725
["ID","MTS","AMOUNT","RATE_DAILY","PERIOD"]
[374669704,1753405877487,-1149.0,0.00020463,2]
[374669705,1753405877496,-1079.0,0.00020463,2]
[374669706,1753405877505,-793.28,0.00020463,2]
[374669707,1753405877514,-760.23,0.00020463,2]
[374669708,1753405877524,-460.0,0.00020465,2]
[374669709,1753405877533,-546.94,0.00020465,2]
[374669710,1753405877542,-460.0,0.00020465,2]
[374669711,1753405877551,-548.26,0.00020465,2]
[374669712,1753405877561,-460.0,0.00020465,2]
[374669713,1753405877570,-460.0,0.00020465,2]
[374669714,1753405877579,-460.0,0.00020465,2]
[374669715,1753405877592,-460.0,0.00020465,2]
[374669716,1753405877601,-932.05,0.00020465,2]
[374669717,1753405877610,-460.0,0.00020465,2]
[374669718,1753405877619,-460.0,0.00020465,2]
[374669719,1753405877629,-460.0,0.00020465,2]
[374669720,1753405877638,-460.0,0.00020465,2]
[374669721,1753405877648,-698.6,0.00020465,2]
[374669722,1753405877657,-460.0,0.00020465,2]
[374669723,1753405877666,-460.0,0.00020465,2]
[374669724,1753405877676,-460.0,0.00020465,2]
[374669725,1753405877687,-993.5,0.00020465,2]
[374669726,1753405877697,-254.96277242,0.00020468,2]
[374669727,1753405877707,-1500.0,0.00020468,2]
[374669728,1753405877715,-806.531227,0.00020477,8]
[374669729,1753405877725,-4359.35292185,0.00020521,3]
[374669730,1753405877735,-168.0,0.00020563,2]
[374669731,1753405877744,-839.14,0.00020581,2]
[374669732,1753405877753,-271.96525308,0.00020581,2]
[374669733,1753405877771,-891.45,0.00020581,2]
[374669734,1753405877787,-3004.04,0.00020581,2]
[374669735,1753405877807,-808.95,0.00020581,2]
[374669736,1753405877825,-664.13,0.00020583,2]
[374669737,1753405877845,-460.0,0.00020583,2]
[374669738,1753405877862,-8109.86,0.00020583,2]
[374669739,1753405877881,-4205.78,0.00020583,2]
[374669740,1753405877898,-460.0,0.00020583,2]
[374669741,1753405877919,-828.63,0.00020583,2]
[374669742,1753405877939,-460.0,0.00020583,2]
[374669743,1753405877956,-1045.24,0.00020583,2]
[374669744,1753405877969,-876.12,0.00020583,2]
[374669745,1753405877990,-3080.87,0.00020583,2]
[374669746,1753405878004,-630.25,0.00020583,2]
[374669747,1753405878020,-258.48786464,0.00020583,2]
[374669748,1753405878034,-2623.82,0.00020583,2]
[374669749,1753405878050,-1224.91,0.00020583,2]
[374669750,1753405878067,-729.01,0.00020583,2]
[374669751,1753405878084,-460.0,0.00020585,2]
[374669752,1753405878099,-829.26,0.00020585,2]
[374669753,1753405878115,-641.73,0.00020585,2]
[374669754,1753405878130,-460.0,0.00020585,2]
[374669755,1753405878148,-460.0,0.00020585,2]
[374669756,1753405878164,-797.44,0.00020585,2]
[374669757,1753405878179,-1009.95,0.00020585,2]
[374669758,1753405878195,-1461.37,0.00020585,2]
[374669759,1753405878211,-873.27,0.00020585,2]
[374669760,1753405878226,-720.64,0.00020585,2]
[374669761,1753405878241,-460.0,0.00020585,2]
[374669762,1753405878256,-478.9,0.00020585,2]
[374669763,1753405878271,-2863.12,0.00020585,2]
[374669764,1753405878287,-570.91,0.00020585,2]
[374669765,1753405878303,-460.0,0.00020585,2]
[374669766,1753405878318,-1139.2,0.00020585,2]
[374669767,1753405878335,-576.02,0.00020585,2]
[374669768,1753405878352,-831.56,0.00020585,2]
[374669769,1753405878367,-1082.99,0.00020585,2]
[374669770,1753405878384,-1185.33,0.00020585,2]
[374669771,1753405878399,-1580.14,0.00020585,2]
[374669772,1753405878410,-460.0,0.00020585,2]
[374669773,1753405878420,-460.0,0.00020585,2]
[374669774,1753405878432,-842.02,0.00020585,2]
[374669775,1753405878447,-460.0,0.00020585,2]
[374669776,1753405878457,-630.13,0.00020585,2]
[374669777,1753405878467,-460.0,0.00020585,2]
[374669778,1753405878478,-825.34,0.00020585,2]
[374669779,1753405878487,-1609.8,0.00020585,2]
[374669780,1753405878497,-1037.15,0.000206,2]
[374669781,1753405878507,-851.14,0.00020606,2]
[374669782,1753405878516,-454.09532267,0.00020606,2]
[374669783,1753405878526,-200.62171853,0.00020606,2]
[374669784,1753405878536,-460.0,0.00020606,2]
[374669785,1753405878546,-460.0,0.00020606,2]
[374669786,1753405878556,-460.0,0.00020606,2]
[374669787,1753405878566,-460.0,0.00020606,2]
[374669788,1753405878576,-1129.03,0.00020606,2]
[374669789,1753405878587,-460.0,0.00020606,2]
[374669790,1753405878598,-460.0,0.00020628,2]
[374669791,1753405878608,-460.0,0.00020628,2]
[374669792,1753405878617,-460.0,0.00020628,2]
[374669793,1753405878627,-634.74,0.00020628,2]
[374669794,1753405878637,-460.0,0.00020628,2]
[374669795,1753405878646,-1638.24,0.00020628,2]
[374669796,1753405878656,-1280.01,0.00020628,2]
[374669797,1753405878665,-545.16,0.00020628,2]
[374669798,1753405878674,-516.35,0.00020628,2]
[374669799,1753405878684,-632.2,0.00020628,2]
[374669800,1753405878944,-1029.2,0.00020628,2]
[374669801,1753405878965,-6996.8,0.00020628,2]
[374669802,1753405878979,-2763.92,0.00020628,2]
[374669803,1753405878989,-231.28369723,0.00020645,2]
[374669804,1753405878998,-4359.35292185,0.00020659,3]
[374669805,1753405879008,-159.672205,0.00020703,2]
[374669806,1753405879017,-159.672205,0.00020703,2]
[374669807,1753405879025,-151.0,0.00020704,2]
[374669808,1753405879036,-460.0,0.00020707,2]
[374669809,1753405879046,-277.47721017,0.00020707,2]
[374669810,1753405879056,-470.3,0.00020707,2]
[374669811,1753405879066,-842.02,0.00020726,2]
[374669812,1753405879079,-797.25,0.00020726,2]
[374669813,1753405879096,-1339.86,0.00020726,2]
[374669814,1753405879106,-1455.26,0.00020726,2]
[374669815,1753405879117,-646.53,0.00020726,2]
[374669816,1753405879126,-689.47,0.00020726,2]
[374669817,1753405879136,-1116.98,0.00020726,2]
[374669818,1753405879146,-2881.55,0.00020726,2]
[374669819,1753405879157,-4319.45,0.00020726,2]
[374669820,1753405879166,-4169.87,0.00020726,2]
[374669821,1753405879176,-460.0,0.00020726,2]
[374669822,1753405879186,-2789.02,0.00020726,2]
[374669823,1753405879195,-1289.13,0.00020726,2]
[374669824,1753405879205,-460.0,0.00020728,2]
[374669825,1753405879215,-460.0,0.00020728,2]
[374669826,1753405879224,-460.0,0.00020728,2]
[374669827,1753405879234,-460.0,0.00020728,2]
[374669828,1753405879244,-552.15,0.00020728,2]
[374669829,1753405879254,-676.46,0.00020728,2]
[374669830,1753405879264,-904.33,0.00020728,2]
[374669831,1753405879273,-1156.4,0.00020728,2]
[374669832,1753405879283,-500.81,0.00020728,2]
[374669833,1753405879293,-680.32,0.00020728,2]
[374669834,1753405879303,-460.0,0.00020728,2]
[374669835,1753405879312,-1029.72,0.00020728,2]
[374669836,1753405879322,-723.77,0.00020728,2]
[374669837,1753405879335,-460.0,0.00020728,2]
[374669838,1753405879345,-460.0,0.00020728,2]
[374669839,1753405879355,-770.55,0.00020728,2]
[374669840,1753405879364,-289.79576107,0.00020728,2]
[374669841,1753405879374,-1464.77,0.00020728,2]
[374669842,1753405879384,-1451.71,0.00020728,2]
[374669843,1753405879394,-460.0,0.00020728,2]
[374669844,1753405879403,-600.06,0.00020728,2]
[374669845,1753405879412,-460.0,0.00020728,2]
[374669846,1753405879422,-649.29,0.00020728,2]
[374669847,1753405879431,-632.98,0.00020728,2]
[374669848,1753405879441,-700.52,0.00020728,2]
[374669849,1753405879451,-570.48,0.00020728,2]
[374669850,1753405879461,-1352.89,0.00020728,2]
[374669851,1753405879471,-1205.96,0.00020728,2]
[374669852,1753405879482,-696.97,0.00020728,2]
[374669853,1753405879492,-542.27,0.00020728,2]
[374669854,1753405879503,-625.29,0.00020728,2]
[374669855,1753405879513,-460.0,0.00020729,2]
[374669856,1753405879523,-460.0,0.00020729,2]
[374669857,1753405879534,-151.0,0.00020729,2]
[374669858,1753405879544,-151.0,0.00020729,2]
[374669859,1753405879554,-2698.01,0.00020729,2]
[374669860,1753405879563,-550.66,0.00020729,2]
[374669861,1753405879573,-1284.55,0.00020729,2]
[374669862,1753405879585,-5026.12,0.00020729,2]
[374669863,1753405879595,-3778.26,0.00020729,2]
[374669864,1753405879604,-516.32,0.00020729,2]
[374669865,1753405879614,-460.0,0.0002073,2]
[374669866,1753405879623,-460.0,0.0002073,2]
[374669867,1753405879634,-614.02,0.0002073,2]
[374669868,1753405879643,-460.0,0.0002073,2]
[374669869,1753405879653,-878.92,0.0002073,2]
[374669870,1753405879663,-843.8,0.0002073,2]
[374669871,1753405879672,-460.0,0.00020736,2]
[374669872,1753405879681,-485.64,0.00020736,2]
[374669873,1753405879691,-1979.39,0.00020736,2]
[374669874,1753405879700,-631.28,0.00020736,2]
[374669875,1753405879710,-460.0,0.00020736,2]
[374669876,1753405879719,-942.95,0.00020736,2]
[374669877,1753405879729,-460.0,0.00020736,2]
[374669878,1753405879738,-460.0,0.00020736,2]
[374669879,1753405879747,-460.0,0.00020736,2]
[374669880,1753405879757,-460.0,0.00020736,2]
[374669881,1753405879767,-497.3,0.00020736,2]
[374669882,1753405879776,-1681.11,0.00020736,2]
[374669883,1753405879785,-675.8,0.00020736,2]
[374669884,1753405879795,-460.0,0.00020736,2]
[374669885,1753405879805,-756.57,0.00020736,2]
[374669886,1753405879814,-821.38,0.00020736,2]
[374669887,1753405879824,-526.09,0.00020736,2]
[374669888,1753405879836,-759.71,0.00020736,2]
[374669889,1753405879847,-524.24,0.00020736,2]
[374669890,1753405879856,-460.0,0.00020736,2]
[374669891,1753405879865,-738.71,0.00020736,2]
[374669892,1753405879875,-1149.0,0.00020737,2]
[374669893,1753405879885,-1079.0,0.00020737,2]
[374669894,1753405879895,-793.28,0.00020737,2]
[374669895,1753405879904,-760.23,0.00020737,2]
[374669896,1753405879914,-460.0,0.00020739,2]
[374669897,1753405879923,-546.94,0.00020739,2]
[374669898,1753405879932,-460.0,0.00020739,2]
[374669899,1753405879942,-548.26,0.00020739,2]
[374669900,1753405879951,-460.0,0.00020739,2]
[374669901,1753405879960,-468.59372322,0.00020739,2]
[374669902,1753405879970,-466.64515779,0.00020739,2]
[374669903,1753405879979,-460.0,0.00020739,2]
[374669904,1753405879989,-932.05,0.00020739,2]
[374669905,1753405879998,-460.0,0.00020739,2]
[374669906,1753405880008,-460.0,0.00020739,2]
[374669907,1753405880017,-460.0,0.00020739,2]
[374669908,1753405880027,-460.0,0.00020739,2]
[374669909,1753405880036,-698.6,0.00020739,2]
[374669910,1753405880046,-460.0,0.00020739,2]
[374669911,1753405880056,-414.56780658,0.00020739,2]
[374669912,1753405880065,-993.5,0.00020739,2]
[374669913,1753405880079,-5000.0,0.00020745,2]
[374669914,1753405880093,-4359.35292185,0.00020797,4]
[374669915,1753405880103,-1000.0,0.000208,2]
[374669916,1753405880114,-800.0,0.00020819,2]
[374669917,1753405880124,-839.14,0.00020855,2]
[374669918,1753405880134,-891.45,0.00020855,2]
[374669919,1753405880145,-3004.04,0.00020855,2]
[374669920,1753405880155,-808.95,0.00020855,2]
[374669921,1753405880166,-664.13,0.00020857,2]
[374669922,1753405880176,-8109.86,0.00020857,2]
[374669923,1753405880186,-4205.78,0.00020857,2]
[374669924,1753405880196,-460.0,0.00020857,2]
[374669925,1753405880206,-828.63,0.00020857,2]
[374669926,1753405880215,-460.0,0.00020857,2]
[374669927,1753405880224,-1045.24,0.00020857,2]
[374669928,1753405880234,-876.12,0.00020857,2]
[374669929,1753405880243,-3080.87,0.00020857,2]
[374669930,1753405880253,-630.25,0.00020857,2]
[374669931,1753405880262,-2623.82,0.00020857,2]
[374669932,1753405880273,-1224.91,0.00020857,2]
[374669933,1753405880282,-729.01,0.00020857,2]
[374669934,1753405880292,-460.0,0.00020859,2]
[374669935,1753405880303,-829.26,0.00020859,2]
[374669936,1753405880312,-641.73,0.00020859,2]
[374669937,1753405880322,-399.87993001,0.00020859,2]
[374669938,1753405880332,-460.0,0.00020859,2]
[374669939,1753405880344,-797.44,0.00020859,2]
[374669940,1753405880354,-1009.95,0.00020859,2]
[374669941,1753405880363,-1461.37,0.00020859,2]
[374669942,1753405880373,-873.27,0.00020859,2]
[374669943,1753405880383,-720.64,0.00020859,2]
[374669944,1753405880393,-460.0,0.00020859,2]
[374669945,1753405880402,-478.9,0.00020859,2]
[374669946,1753405880412,-2863.12,0.00020859,2]
[374669947,1753405880421,-570.91,0.00020859,2]
[374669948,1753405880431,-460.0,0.00020859,2]
[374669949,1753405880440,-1139.2,0.00020859,2]
[374669950,1753405880449,-576.02,0.00020859,2]
[374669951,1753405880459,-542.679909,0.00020859,2]
[374669952,1753405880468,-542.679909,0.00020859,2]
[374669953,1753405880478,-831.56,0.00020859,2]
[374669954,1753405880487,-1082.99,0.00020859,2]
[374669955,1753405880497,-1185.33,0.00020859,2]
[374669956,1753405880507,-1580.14,0.00020859,2]
[374669957,1753405880517,-460.0,0.00020859,2]
[374669958,1753405880526,-186.193279,0.00020859,2]
[374669959,1753405880535,-186.193279,0.00020859,2]
[374669960,1753405880545,-460.0,0.00020859,2]
[374669961,1753405880553,-842.02,0.00020859,2]
[374669962,1753405880563,-460.0,0.00020859,2]
[374669963,1753405880573,-630.13,0.00020859,2]
[374669964,1753405880585,-460.0,0.00020859,2]
[374669965,1753405880595,-825.34,0.00020859,2]
[374669966,1753405880605,-1609.8,0.00020859,2]
[374669967,1753405880614,-587.0,0.0002087,2]
[374669968,1753405880623,-587.0,0.0002087,2]
[374669969,1753405880633,-587.0,0.0002087,2]
[374669970,1753405880642,-851.14,0.0002088,2]
[374669971,1753405880652,-460.0,0.0002088,2]
[374669972,1753405880661,-415.50965263,0.0002088,2]
[374669973,1753405880671,-460.0,0.0002088,2]
[374669974,1753405880680,-460.0,0.0002088,2]
[374669975,1753405880690,-1129.03,0.0002088,2]
[374669976,1753405880700,-460.0,0.0002088,2]
[374669977,1753405880709,-2500.0,0.00020882,2]
[374669978,1753405880718,-460.0,0.00020902,2]
[374669979,1753405880728,-460.0,0.00020902,2]
[374669980,1753405880738,-504.86075249,0.00020902,2]
[374669981,1753405880747,-634.74,0.00020902,2]
[374669982,1753405880756,-217.502981,0.00020902,2]
[374669983,1753405880764,-217.502981,0.00020902,2]
[374669984,1753405880774,-460.0,0.00020902,2]
[374669985,1753405880783,-1638.24,0.00020902,2]
[374669986,1753405880793,-1280.01,0.00020902,2]
[374669987,1753405880802,-545.16,0.00020902,2]
[374669988,1753405880812,-516.35,0.00020902,2]
[374669989,1753405880821,-632.2,0.00020902,2]
[374669990,1753405880831,-1029.2,0.00020902,2]
[374669991,1753405880843,-6996.8,0.00020902,2]
[374669992,1753405880852,-2763.92,0.00020902,2]
[374669993,1753405880861,-245.37239892,0.00020904,3]
[374669994,1753405880871,-151.0,0.00020907,2]
[374669995,1753405880880,-460.0,0.0002092,2]
[374669996,1753405880890,-2351.0,0.00020927,2]
[374669997,1753405880899,-4359.35292185,0.00020934,4]
[374669998,1753405880909,-1683.142108,0.0002096,5]
[374669999,1753405880918,-3500.0,0.0002096,2]
[374670000,1753405880928,-151.0,0.00020977,2]
[374670001,1753405880937,-1000.0,0.0002098,5]
[374670002,1753405880946,-151.0,0.0002098,2]
[374670003,1753405880956,-187.479922,0.00020981,2]
[374670004,1753405880966,-187.479922,0.00020981,2]
[374670005,1753405880977,-491.28897321,0.00020981,2]
[374670006,1753405880987,-470.3,0.00020981,2]
[374670007,1753405880997,-842.02,0.00021,2]
[374670008,1753405881007,-3000.0,0.00021,2]
[374670009,1753405881017,-797.25,0.00021,2]
[374670010,1753405881025,-1000.0,0.00021,5]
[374670011,1753405881034,-1339.86,0.00021,2]
[374670012,1753405881043,-1455.26,0.00021,2]
[374670013,1753405881053,-646.53,0.00021,2]
[374670014,1753405881063,-689.47,0.00021,2]
[374670015,1753405881075,-1116.98,0.00021,2]
[374670016,1753405881085,-2881.55,0.00021,2]
[374670017,1753405881095,-4319.45,0.00021,2]
[374670018,1753405881105,-4169.87,0.00021,2]
[374670019,1753405881117,-460.0,0.00021,2]
[374670020,1753405881127,-2789.02,0.00021,2]
[374670021,1753405881136,-1289.13,0.00021,2]
[374670022,1753405881148,-460.0,0.00021002,2]
[374670023,1753405881158,-460.0,0.00021002,2]
[374670024,1753405881168,-460.0,0.00021002,2]
[374670025,1753405881178,-455.90337486,0.00021002,2]
[374670026,1753405881187,-552.15,0.00021002,2]
[374670027,1753405881197,-676.46,0.00021002,2]
[374670028,1753405881207,-904.33,0.00021002,2]
[374670029,1753405881216,-1156.4,0.00021002,2]
[374670030,1753405881226,-500.81,0.00021002,2]
[374670031,1753405881235,-680.32,0.00021002,2]
[374670032,1753405881244,-460.0,0.00021002,2]
[374670033,1753405881254,-1029.72,0.00021002,2]
[374670034,1753405881263,-723.77,0.00021002,2]
[374670035,1753405881273,-233.3206927,0.00021002,2]
[374670036,1753405881282,-151.0,0.00021002,2]
[374670037,1753405881291,-460.0,0.00021002,2]
[374670038,1753405881300,-770.55,0.00021002,2]
[374670039,1753405881310,-1464.77,0.00021002,2]
[374670040,1753405881319,-1451.71,0.00021002,2]
[374670041,1753405881329,-460.0,0.00021002,2]
[374670042,1753405881339,-600.06,0.00021002,2]
[374670043,1753405881349,-460.0,0.00021002,2]
[374670044,1753405881358,-206.1693,0.00021002,2]
[374670045,1753405881368,-337.648918,0.00021002,2]
[374670046,1753405881378,-1500.0,0.00021002,7]
[374670047,1753405881387,-1500.0,0.00021002,7]
[374670048,1753405881397,-206.1693,0.00021002,2]
[374670049,1753405881406,-1500.0,0.00021002,7]
[374670050,1753405881416,-1500.0,0.00021002,7]
[374670051,1753405881426,-1500.0,0.00021002,7]
[374670052,1753405881436,-1500.0,0.00021002,7]
[374670053,1753405881445,-1500.0,0.00021002,7]
[374670054,1753405881455,-1500.0,0.00021002,7]
[374670055,1753405881464,-1500.0,0.00021002,7]
[374670056,1753405881474,-1500.0,0.00021002,7]
[374670057,1753405881483,-1500.0,0.00021002,7]
[374670058,1753405881493,-1500.0,0.00021002,7]
[374670059,1753405881502,-1500.0,0.00021002,7]
[374670060,1753405881512,-1500.0,0.00021002,7]
[374670061,1753405881607,-337.648918,0.00021002,2]
[374670062,1753405881635,-1500.0,0.00021002,7]
[374670063,1753405881644,-1500.0,0.00021002,7]
[374670064,1753405881654,-1500.0,0.00021002,7]
[374670065,1753405881663,-1500.0,0.00021002,7]
[374670066,1753405881673,-1500.0,0.00021002,7]
[374670067,1753405881682,-1500.0,0.00021002,7]
[374670068,1753405881692,-1500.0,0.00021002,7]
[374670069,1753405881701,-1189.889258,0.00021002,7]
[374670070,1753405881711,-649.29,0.00021002,2]
[374670071,1753405881720,-632.98,0.00021002,2]
[374670072,1753405881730,-700.52,0.00021002,2]
[374670073,1753405881740,-570.48,0.00021002,2]
[374670074,1753405881750,-362.441595,0.00021002,2]
[374670075,1753405881759,-646.526861,0.00021002,2]
[374670076,1753405881768,-646.526861,0.00021002,2]
[374670077,1753405881778,-362.441595,0.00021002,2]
[374670078,1753405881788,-1352.89,0.00021002,2]
[374670079,1753405881799,-1205.96,0.00021002,2]
[374670080,1753405881808,-696.97,0.00021002,2]
[374670081,1753405881817,-542.27,0.00021002,2]
[374670082,1753405881828,-625.29,0.00021002,2]
[374670083,1753405881840,-460.0,0.00021003,2]
[374670084,1753405881850,-460.0,0.00021003,2]
[374670085,1753405881859,-170.561542,0.00021003,2]
[374670086,1753405881869,-170.561542,0.00021003,2]
[374670087,1753405881878,-2698.01,0.00021003,2]
[374670088,1753405881888,-550.66,0.00021003,2]
[374670089,1753405881899,-1284.55,0.00021003,2]
[374670090,1753405881909,-5026.12,0.00021003,2]
[374670091,1753405881919,-3778.26,0.00021003,2]
[374670092,1753405881929,-516.32,0.00021003,2]
[374670093,1753405881939,-460.0,0.00021004,2]
[374670094,1753405881949,-151.0,0.00021004,2]
[374670095,1753405881958,-214.9,0.00021004,2]
[374670096,1753405881967,-214.9,0.00021004,2]
[374670097,1753405881976,-460.0,0.00021004,2]
[374670098,1753405881985,-614.02,0.00021004,2]
[374670099,1753405881994,-574.17513646,0.00021004,2]
[374670100,1753405882002,-878.92,0.00021004,2]
[374670101,1753405882011,-843.8,0.00021004,2]
[374670102,1753405882020,-452.87118701,0.0002101,2]
[374670103,1753405882029,-373.0971583,0.0002101,2]
[374670104,1753405882038,-485.64,0.0002101,2]
[374670105,1753405882047,-3000.0,0.0002101,2]
[374670106,1753405882056,-151.0,0.0002101,2]
[374670107,1753405882069,-191.267888,0.0002101,2]
[374670108,1753405882078,-232.905966,0.0002101,2]
[374670109,1753405882091,-232.905966,0.0002101,2]
[374670110,1753405882100,-151.0,0.0002101,2]
[374670111,1753405882110,-151.0,0.0002101,2]
[374670112,1753405882120,-1979.39,0.0002101,2]
[374670113,1753405882129,-151.0,0.0002101,2]
[374670114,1753405882140,-631.28,0.0002101,2]
[374670115,1753405882150,-460.0,0.0002101,2]
[374670116,1753405882161,-942.95,0.0002101,2]
[374670117,1753405882171,-460.0,0.0002101,2]
[374670118,1753405882180,-460.0,0.0002101,2]
[374670119,1753405882190,-460.0,0.0002101,2]
[374670120,1753405882200,-460.0,0.0002101,2]
[374670121,1753405882210,-497.3,0.0002101,2]
[374670122,1753405882229,-1681.11,0.0002101,2]
[374670123,1753405882243,-675.8,0.0002101,2]
[374670124,1753405882253,-460.0,0.0002101,2]
[374670125,1753405882264,-756.57,0.0002101,2]
[374670126,1753405882274,-821.38,0.0002101,2]
[374670127,1753405882285,-526.09,0.0002101,2]
[374670128,1753405882295,-759.71,0.0002101,2]
[374670129,1753405882305,-524.24,0.0002101,2]
[374670130,1753405882316,-460.0,0.0002101,2]
[374670131,1753405882327,-738.71,0.0002101,2]
[374670132,1753405882339,-1149.0,0.00021011,2]
[374670133,1753405882349,-1079.0,0.00021011,2]
[374670134,1753405882359,-793.28,0.00021011,2]
[374670135,1753405882370,-317.01409442,0.00021012,2]
[374670136,1753405882380,-600.0,0.00021012,2]
[374670137,1753405882390,-460.0,0.00021013,2]
[374670138,1753405882401,-546.94,0.00021013,2]
[374670139,1753405882411,-460.0,0.00021013,2]
[374670140,1753405882422,-548.26,0.00021013,2]
[374670141,1753405882432,-460.0,0.00021013,2]
[374670142,1753405882443,-460.0,0.00021013,2]
[374670143,1753405882454,-932.05,0.00021013,2]
[374670144,1753405882464,-460.0,0.00021013,2]
[374670145,1753405882474,-460.0,0.00021013,2]
[374670146,1753405882484,-460.0,0.00021013,2]
[374670147,1753405882494,-460.0,0.00021013,2]
[374670148,1753405882504,-698.6,0.00021013,2]
[374670149,1753405882514,-418.92156931,0.00021013,2]
[374670150,1753405882524,-993.5,0.00021013,2]
[374670151,1753405882534,-2000.0,0.00021016,2]
[374670152,1753405882543,-3000.0,0.0002102,2]
[374670153,1753405882553,-3000.0,0.0002103,2]
[374670154,1753405882563,-3000.0,0.0002104,2]
[374670155,1753405882572,-3000.0,0.0002105,2]
[374670156,1753405882583,-3000.0,0.0002106,2]
[374670157,1753405882594,-3000.0,0.0002107,2]
[374670158,1753405882604,-4359.35292185,0.00021072,4]
[374670159,1753405882614,-2351.0,0.00021077,2]
[374670160,1753405882624,-3000.0,0.0002108,2]
[374670161,1753405882634,-3000.0,0.0002109,2]
[374670162,1753405882644,-3000.0,0.000211,2]
[374670163,1753405882654,-324.3195,0.000211,2]
[374670164,1753405882666,-214.7213231,0.000211,7]
[374670165,1753405882677,-160.0,0.000211,7]
[374670166,1753405882688,-12624.810388,0.000211,7]
[374670167,1753405882697,-3000.0,0.0002111,2]
[374670168,1753405882707,-3000.0,0.0002112,2]
[374670169,1753405882717,-839.14,0.00021129,2]
[374670170,1753405882727,-891.45,0.00021129,2]
[374670171,1753405882737,-3004.04,0.00021129,2]
[374670172,1753405882747,-808.95,0.00021129,2]
[374670173,1753405882757,-3000.0,0.0002113,2]
[374670174,1753405882767,-664.13,0.00021131,2]
[374670175,1753405882777,-8109.86,0.00021131,2]
[374670176,1753405882787,-4205.78,0.00021131,2]
[374670177,1753405882798,-460.0,0.00021131,2]
[374670178,1753405882808,-828.63,0.00021131,2]
[374670179,1753405882819,-460.0,0.00021131,2]
[374670180,1753405882828,-1045.24,0.00021131,2]
[374670181,1753405882839,-876.12,0.00021131,2]
[374670182,1753405882849,-3080.87,0.00021131,2]
[374670183,1753405882858,-630.25,0.00021131,2]
[374670184,1753405882868,-2623.82,0.00021131,2]
[374670185,1753405882879,-1224.91,0.00021131,2]
[374670186,1753405882888,-729.01,0.00021131,2]
[374670187,1753405882898,-271.00273005,0.00021133,2]
[374670188,1753405882908,-829.26,0.00021133,2]
[374670189,1753405882918,-641.73,0.00021133,2]
[374670190,1753405882927,-460.0,0.00021133,2]
[374670191,1753405882937,-797.44,0.00021133,2]
[374670192,1753405882946,-1009.95,0.00021133,2]
[374670193,1753405882956,-1461.37,0.00021133,2]
[374670194,1753405882966,-873.27,0.00021133,2]
[374670195,1753405882975,-720.64,0.00021133,2]
[374670196,1753405882985,-460.0,0.00021133,2]
[374670197,1753405882994,-478.9,0.00021133,2]
[374670198,1753405883004,-2863.12,0.00021133,2]
[374670199,1753405883013,-570.91,0.00021133,2]
[374670200,1753405883023,-460.0,0.00021133,2]
[374670201,1753405883032,-1139.2,0.00021133,2]
[374670202,1753405883042,-576.02,0.00021133,2]
[374670203,1753405883052,-831.56,0.00021133,2]